bitfinex-derivatives/quotes_SOLF0:USTF0_20241107
["timestamp","ask_amount","ask_price","bid_price","bid_amount"]
[1731014418582,1.2495,196.95,196.87,7.7674388]
[1731014418895,7.7674388,196.92,196.87,7.7674388]
[1731014420190,2.5348,196.93,196.89,7.7674388]
[1731014420681,7.7674388,196.94,196.89,7.7674388]
[1731014420892,7.7674388,196.96,196.91,7.7674388]
[1731014421284,88.28860202,196.97,196.92,7.7674388]
[1731014421592,2.5345,196.96,196.92,7.7674388]
[1731014421785,88.28860202,196.97,196.92,7.7674388]
[1731014421786,7.7674388,196.97,196.92,7.7674388]
[1731014422184,1.2495,197.02,196.94,7.7674388]
[1731014422386,7.7674388,197.0,196.94,7.7674388]
[1731014422587,10.13528475,197.1,196.99,7.7674388]
[1731014422791,2.5333,197.05,196.99,10.3013388]
[1731014423089,7.7674388,197.07,197.01,7.7674388]
[1731014423597,2.5329,197.08,197.02,2.5335]
[1731014423895,2.5329,197.08,197.04,7.7674388]
[1731014424096,129.15431753,197.12,196.97,3.34]
[1731014424391,7.7674388,197.07,197.01,7.7674388]
[1731014424595,7.7674388,197.07,197.03,7.7674388]
[1731014424789,10.3004388,197.07,197.03,7.7674388]
[1731014424994,7.7674388,197.07,197.03,7.7674388]
[1731014425197,7.7674388,197.07,197.01,7.7674388]
[1731014425498,7.7674388,197.05,197.01,7.7674388]
[1731014425791,7.7674388,197.03,196.98,7.7674388]
[1731014426392,7.7674388,197.05,197.0,7.7674388]
[1731014426598,7.7674388,197.03,196.98,7.7674388]
[1731014426898,2.5336,197.02,196.98,7.7674388]
[1731014427993,7.7674388,197.03,196.98,7.7674388]
[1731014428300,10.3009388,197.03,196.98,7.7674388]
[1731014428888,51.45990904,197.1,196.98,7.7674388]
[1731014429089,51.45990904,197.1,197.0,7.7674388]
[1731014429090,10.3007388,197.05,197.0,7.7674388]
[1731014429289,7.7674388,197.05,197.0,7.7674388]
[1731014429602,2.5338,197.04,197.0,7.7674388]
[1731014429899,7.7674388,197.05,197.0,7.7674388]
[1731014430085,10.3011388,197.05,197.0,7.7674388]
[1731014430788,2.5337,197.04,197.0,7.7674388]
[1731014431698,7.7674388,197.03,196.96,7.7674388]
[1731014432101,7.7674388,197.03,196.97,2.5346]
[1731014432609,2.534,197.02,196.96,7.7674388]
[1731014432797,2.534,197.02,196.96,10.3021388]
[1731014434397,2.534,197.02,196.97,2.5346]
[1731014434599,2.534,197.02,196.96,7.7674388]
[1731014434798,2.5343,197.01,196.96,7.7674388]
[1731014434997,7.7674388,197.01,196.95,1.1969]
[1731014435203,7.7674388,196.99,196.93,7.7674388]
[1731014435408,2.5348,196.97,196.93,7.7674388]
[1731014437596,2.5348,196.97,196.93,10.3026388]
[1731014437900,2.5348,196.97,196.93,7.7674388]
[1731014438305,2.5348,196.97,196.89,3.34]
[1731014438306,7.7674388,196.96,196.86,45.04644829]
[1731014438492,7.7674388,196.94,196.88,7.7674388]
[1731014439100,2.5353,196.93,196.88,10.3032388]
[1731014439407,7.7674388,196.92,196.82,5.8818]
[1731014439594,7.7674388,196.92,196.86,7.7674388]
[1731014439799,7.7674388,196.94,196.88,7.7674388]
[1731014440812,2.5353,196.93,196.89,2.5357]
[1731014441603,7.7674388,196.94,196.84,2.55902982]
[1731014441800,7.7674388,196.92,196.87,2.5359]
[1731014442612,7.7674388,196.92,196.88,7.7674388]
[1731014442803,2.5355,196.91,196.88,7.7674388]
[1731014443201,7.7674388,196.92,196.88,10.3032388]
[1731014443605,7.7674388,196.93,196.88,10.3032388]
[1731014444106,7.7674388,196.93,196.88,7.7674388]
[1731014444304,7.7674388,196.93,196.89,2.5357]
[1731014444703,10.3027388,196.93,196.89,2.5357]
[1731014445107,10.3027388,196.93,196.88,7.7674388]
[1731014446512,2.5355,196.92,196.88,7.7674388]
[1731014446706,10.3029388,196.92,196.88,7.7674388]
[1731014447411,2.5357,196.9,196.86,7.7674388]
[1731014447608,7.7674388,196.9,196.82,2.5418]
[1731014447812,2.5358,196.89,196.85,7.7674388]
[1731014448010,7.7674388,196.9,196.85,7.7674388]
[1731014448207,7.7674388,196.88,196.82,7.7674388]
[1731014448407,10.3034388,196.88,196.83,2.5365]
[1731014448808,3.34,196.91,196.82,7.7674388]
[1731014448809,10.3036388,196.86,196.82,7.7674388]
[1731014450115,10.3036388,196.86,196.81,7.7674388]
[1731014450817,10.3036388,196.86,196.82,2.5366]
[1731014452806,2.5364,196.84,196.8,2.5369]
[1731014453006,2.5364,196.84,196.8,10.3043388]
[1731014453517,7.7674388,196.85,196.8,10.3043388]
[1731014453721,10.3037388,196.85,196.81,2.5367]
[1731014454211,7.7674388,196.85,196.82,2.5366]
[1731014456620,7.7674388,196.85,196.8,7.7674388]
[1731014456814,7.7674388,196.85,196.81,2.5368]
[1731014458617,1.2295,196.93,196.81,7.7674388]
[1731014458813,7.7674388,196.88,196.84,2.5364]
[1731014459009,2.5358,196.89,196.85,7.7674388]
[1731014459413,10.3032388,196.89,196.85,7.7674388]
[1731014460015,10.3032388,196.89,196.85,10.3036388]
[1731014460616,7.7674388,196.89,196.83,7.7674388]
[1731014460918,2.536,196.88,196.83,7.7674388]
[1731014461129,7.7674388,196.87,196.83,7.7674388]
[1731014461424,10.3035388,196.87,196.83,7.7674388]
[1731014461615,10.3035388,196.87,196.82,2.5366]
[1731014461815,7.7674388,196.85,196.79,7.7674388]
[1731014462123,10.3037388,196.85,196.79,7.7674388]
[1731014462327,10.3037388,196.85,196.8,2.5369]
[1731014462517,10.3037388,196.85,196.79,7.7674388]
[1731014462719,10.3037388,196.85,196.76,3.34]
[1731014463029,10.3037388,196.85,196.8,7.7674388]
[1731014463225,2.5365,196.83,196.75,3.6575]
[1731014463425,2.5365,196.83,196.79,7.7674388]
[1731014463616,7.7674388,196.84,196.79,7.7674388]
[1731014463821,10.3038388,196.84,196.8,2.5369]
[1731014464219,7.7674388,196.84,196.8,2.5369]
[1731014464418,2.5238,196.9,196.75,3.6575]
[1731014464419,7.7674388,196.86,196.81,7.7674388]
[1731014465024,10.3036388,196.86,196.83,2.5365]
[1731014466028,7.7674388,196.85,196.81,2.5367]
[1731014466233,10.3037388,196.85,196.81,2.5367]
[1731014467824,10.3037388,196.85,196.8,2.5368]
[1731014468014,10.3037388,196.85,196.79,7.7674388]
[1731014468422,10.3037388,196.85,196.81,2.5367]
[1731014469120,10.3037388,196.85,196.75,3.6575]
[1731014469329,2.5364,196.84,196.8,2.5369]
[1731014469528,2.5364,196.84,196.79,7.7674388]
[1731014470433,7.7674388,196.85,196.82,2.5366]
[1731014470616,2.5362,196.86,196.82,2.5366]
[1731014470617,10.3036388,196.86,196.82,2.5366]
[1731014471934,10.3036388,196.86,196.81,2.5368]
[1731014471935,2.5363,196.85,196.81,2.5368]
[1731014472122,7.7674388,196.84,196.79,7.7674388]
[1731014472629,2.5366,196.83,196.79,7.7674388]
[1731014473321,2.5366,196.83,196.79,10.3044388]
[1731014473729,2.5366,196.83,196.79,7.7674388]
[1731014474026,2.5366,196.83,196.79,10.3044388]
[1731014477028,2.5366,196.83,196.78,2.5371]
[1731014477228,2.5367,196.82,196.77,7.7674388]
[1731014477629,7.7674388,196.83,196.77,7.7674388]
[1731014477824,2.5369,196.81,196.77,10.3047388]
[1731014478143,7.7674388,196.81,196.75,10.1750388]
[1731014478340,2.537,196.8,196.76,2.5374]
[1731014478734,7.7674388,196.79,196.73,7.7674388]
[1731014478934,10.3045388,196.79,196.73,7.7674388]
[1731014479134,7.7674388,196.79,196.7,1.2658]
[1731014479338,10.3048388,196.77,196.72,2.5379]
[1731014479538,10.3048388,196.77,196.71,12.393038]
[1731014479843,10.3048388,196.77,196.71,7.7674388]
[1731014480039,2.5368,196.82,196.75,7.7674388]
[1731014480241,7.7674388,196.81,196.75,7.7674388]
[1731014480641,7.7674388,196.79,196.76,2.5374]
[1731014481845,10.3045388,196.79,196.75,10.3049388]
[1731014483442,7.7674388,196.78,196.75,2.5375]
[1731014483945,10.3045388,196.79,196.75,2.5375]
[1731014487045,10.3045388,196.79,196.74,10.3051388]
[1731014487244,7.7674388,196.79,196.74,10.3051388]
[1731014488649,10.3045388,196.79,196.74,10.3051388]
[1731014489447,7.7674388,196.79,196.74,10.3051388]
[1731014490446,10.3045388,196.79,196.74,10.3051388]
[1731014490761,10.3045388,196.79,196.75,2.5376]
[1731014491142,2.5371,196.79,196.75,2.5376]
[1731014492452,2.5371,196.79,196.74,7.7674388]
[1731014492752,7.7674388,196.78,196.71,7.7674388]
[1731014492949,7.7674388,196.78,196.72,4.64144849]
[1731014493254,2.5376,196.77,196.73,2.5381]
[1731014493445,7.7674388,196.78,196.71,7.7674388]
[1731014493642,2.4537,196.82,196.71,7.7674388]
[1731014493852,3.3,196.85,196.75,10.3052388]
[1731014494150,1.2214,196.89,196.77,7.7674388]
[1731014494355,7.7674388,196.83,196.77,7.7674388]
[1731014494943,2.537,196.82,196.78,2.5374]
[1731014495855,10.3044388,196.82,196.78,2.5374]
[1731014496654,10.3044388,196.82,196.77,7.7674388]
[1731014496655,7.7674388,196.83,196.77,7.7674388]
[1731014497950,2.5369,196.82,196.78,2.5374]
[1731014503162,7.7674388,196.83,196.78,7.7674388]
[1731014503759,7.7674388,196.83,196.8,2.5372]
[1731014504353,10.3043388,196.83,196.78,7.7674388]
[1731014504546,10.3043388,196.83,196.79,2.5373]
[1731014504758,36.58,196.95,196.8,7.7674388]
[1731014505058,10.3038388,196.86,196.8,7.7674388]
[1731014505758,10.3038388,196.86,196.82,2.5369]
[1731014507652,7.7674388,196.85,196.82,2.5369]
[1731014508457,7.7674388,196.83,196.79,2.5372]
[1731014508965,7.7674388,196.82,196.79,2.5372]
[1731014509559,7.98168159,196.93,196.74,1.2498]
[1731014509560,7.7674388,196.8,196.74,1.2498]
[1731014509861,7.7674388,196.77,196.72,7.7674388]
[1731014510047,7.7674388,196.77,196.75,2.5378]
[1731014510252,2.5374,196.79,196.75,2.5378]
[1731014510253,10.3048388,196.79,196.75,2.5378]
[1731014511569,7.7674388,196.77,196.72,7.7674388]
[1731014511761,7.7674388,196.77,196.7,1.1982]
[1731014511962,3.3,196.82,196.69,10.3059388]
[1731014511963,2.5381,196.74,196.69,10.3059388]
[1731014512157,7.7674388,196.73,196.67,7.7674388]
[1731014513753,10.3055388,196.73,196.68,2.5386]
[1731014514162,7.7674388,196.72,196.64,2.32782675]
[1731014514470,2.5383,196.71,196.67,2.5388]
[1731014514969,10.3056388,196.72,196.68,2.5387]
[1731014515263,7.7674388,196.74,196.68,7.7674388]
[1731014515471,3.3,196.76,196.72,7.7674388]
[1731014515660,7.7674388,196.77,196.72,7.7674388]
[1731014516157,10.3051388,196.77,196.73,2.538]
[1731014516366,7.7674388,196.76,196.7,7.7674388]
[1731014516867,2.5379,196.75,196.71,2.5383]
[1731014517959,10.3056388,196.72,196.68,2.5386]
[1731014518266,10.3056388,196.72,196.66,2.85413361]
[1731014518469,10.3056388,196.72,196.66,10.62157241]
[1731014518769,10.3056388,196.72,196.68,2.5387]
[1731014519366,2.5382,196.72,196.68,2.5387]
[1731014520766,12.18275329,196.75,196.68,2.5387]
[1731014521169,2.5382,196.73,196.68,2.5387]
[1731014523364,2.5383,196.72,196.66,5.39303361]
[1731014523672,1.2079,196.78,196.66,5.39303361]
[1731014523673,12.18275329,196.73,196.66,5.39303361]
[1731014524774,2.5386,196.69,196.66,5.39303361]
[1731014524970,12.18275329,196.73,196.66,5.39303361]
[1731014525775,2.5386,196.69,196.66,2.85413361]
[1731014527072,2.5387,196.68,196.66,2.85413361]
[1731014528361,2.5386,196.69,196.66,2.85413361]
[1731014528568,12.18275329,196.73,196.66,2.85413361]
[1731014529067,2.5384,196.71,196.66,5.39303361]
[1731014530678,2.5385,196.7,196.66,5.39303361]
[1731014532474,2.5385,196.7,196.67,2.5388]
[1731014533276,3.3,196.74,196.66,2.85413361]
[1731014533481,3.3,196.74,196.68,2.5386]
[1731014534086,2.5381,196.73,196.68,2.5386]
[1731014534678,2.5381,196.73,196.69,2.5386]
[1731014534884,15.48275329,196.75,196.67,12.18275329]
[1731014534885,5.8379,196.75,196.67,12.18275329]
[1731014535084,16.69065329,196.78,196.67,12.18275329]
[1731014535288,16.69065329,196.78,196.72,2.5382]
[1731014535585,2.5378,196.76,196.72,2.5382]
[1731014539274,10.34014753,196.76,196.72,2.5382]
[1731014545371,7.80234753,196.72,196.69,2.5386]
[1731014545578,7.80234753,196.72,196.66,10.65648114]
[1731014545882,7.80234753,196.7,196.66,10.65648114]
[1731014546382,7.80234753,196.7,196.67,2.5388]
[1731014546587,7.80234753,196.7,196.66,10.65648114]
[1731014547082,10.34084753,196.7,196.67,2.5388]
[1731014548485,7.80234753,196.7,196.67,2.5388]
[1731014548886,7.80234753,196.69,196.66,2.85413361]
[1731014549086,10.34104753,196.69,196.66,2.85413361]
[1731014549987,7.80234753,196.69,196.66,2.85413361]
[1731014550190,2.5388,196.68,196.66,2.85413361]
[1731014550485,3.3,196.73,196.66,2.85413361]
[1731014550688,10.34114753,196.67,196.66,2.85413361]
[1731014553685,2.5388,196.67,196.66,2.85413361]
[1731014555389,7.80234753,196.68,196.66,2.85413361]
[1731014555580,51.5432055,196.79,196.66,10.65648114]
[1731014555787,7.80234753,196.73,196.68,7.80234753]
[1731014556177,2.5384,196.71,196.68,7.80234753]
[1731014557085,2.5385,196.7,196.66,5.39313361]
[1731014557286,2.5385,196.7,196.67,7.80234753]
[1731014557790,2.5385,196.7,196.66,5.39313361]
[1731014557991,10.34084753,196.7,196.66,5.39313361]
[1731014559188,6.7919612,196.77,196.66,2.85413361]
[1731014559397,4.039679,196.76,196.66,2.85413361]
[1731014559585,7.80234753,196.69,196.66,2.85413361]
[1731014560487,2.5379,196.75,196.66,10.65648114]
[1731014560686,7.80234753,196.73,196.68,7.80234753]
[1731014561196,7.80234753,196.77,196.72,7.80234753]
[1731014562194,10.34004753,196.77,196.72,10.34054753]
[1731014565192,7.80234753,196.77,196.72,10.34054753]
[1731014565402,7.80234753,196.76,196.7,10.34074753]
[1731014565790,2.5379,196.75,196.7,10.34074753]
[1731014566398,7.80234753,196.76,196.68,1.2245]
[1731014566603,2.5381,196.73,196.68,10.34104753]
[1731014567391,7.80234753,196.74,196.68,7.80234753]
[1731014567595,2.5384,196.71,196.68,7.80234753]
[1731014568601,2.5384,196.71,196.66,10.65648114]
[1731014568799,2.5384,196.71,196.66,13.19538114]
[1731014569695,10.34104753,196.69,196.66,2.85413361]
[1731014571190,2.5388,196.68,196.66,2.85413361]
[1731014579305,2.5388,196.67,196.66,2.85413361]
[1731014579506,10.34114753,196.67,196.66,2.85413361]
[1731014580114,2.5388,196.67,196.66,2.85413361]
[1731014580417,3.28,196.75,196.66,10.65648114]
[1731014580723,7.80234753,196.71,196.66,10.65648114]
[1731014581717,2.5386,196.69,196.66,2.85413361]
[1731014582019,10.34094753,196.69,196.66,2.85413361]
[1731014587616,2.5386,196.7,196.66,2.85413361]
[1731014587820,2.5386,196.7,196.66,5.39313361]
[1731014588203,2.5386,196.7,196.66,13.19548114]
[1731014589006,6.7756236,196.76,196.69,7.80234753]
[1731014589320,51.55967038,196.77,196.73,7.80234753]
[1731014589919,51.55967038,196.77,196.74,7.80234753]
[1731014590716,51.55967038,196.77,196.74,10.34024753]
[1731014590915,51.55967038,196.77,196.74,7.80234753]
[1731014591122,7.80234753,196.82,196.69,3.26]
[1731014591329,3.26,196.85,196.79,7.80234753]
[1731014591330,7.80234753,196.84,196.79,7.80234753]
[1731014592411,7.80234753,196.83,196.77,7.80234753]
[1731014592819,10.33914753,196.83,196.78,2.5374]
[1731014593014,10.33914753,196.83,196.77,7.80234753]
[1731014593015,7.80234753,196.83,196.77,7.80234753]
[1731014593213,7.80234753,196.83,196.76,7.80234753]
[1731014593426,7.80234753,196.83,196.78,7.80234753]
[1731014593615,7.80234753,196.84,196.78,7.80234753]
[1731014593810,7.80234753,196.84,196.8,7.80234753]
[1731014594119,7.80234753,196.86,196.8,7.80234753]
[1731014594510,6.64322253,196.87,196.85,7.80234753]
[1731014594712,6.64322253,196.87,196.86,7.80234753]
[1731014594713,0.83332253,196.87,196.86,7.80234753]
[1731014594916,6.06909496,196.9,196.86,7.80234753]
[1731014595221,6.06909496,196.9,196.89,10.33834753]
[1731014596024,6.06909496,196.9,196.88,7.80234753]
[1731014597024,6.06909496,196.9,196.85,3.26]
[1731014597223,6.06909496,196.9,196.85,7.80234753]
[1731014597422,6.06909496,196.9,196.83,15.43217375]
[1731014598529,2.5358,196.91,196.86,2.5363]
[1731014598710,13.45357375,196.97,196.85,12.17217375]
[1731014599525,2.5354,196.94,196.88,2.5361]
[1731014599831,13.45357375,196.97,196.85,12.17217375]
[1731014600017,13.45357375,196.97,196.85,14.74867375]
[1731014600324,13.45357375,196.97,196.87,12.17217375]
[1731014600728,2.5352,196.95,196.89,2.536]
[1731014602213,4.4763,197.0,196.87,12.17217375]
[1731014602214,2.5351,196.96,196.87,12.17217375]
[1731014602821,2.5351,196.96,196.89,2.5359]
[1731014603023,2.5351,196.96,196.87,12.17217375]
[1731014603620,2.5351,196.96,196.89,2.5359]
[1731014603823,2.5351,196.96,196.87,12.17217375]
[1731014604334,2.5351,196.96,196.91,2.5357]
[1731014605125,2.535,196.97,196.92,2.5356]
[1731014607938,2.5352,196.96,196.91,2.5357]
[1731014608328,2.5352,196.96,196.87,12.17217375]
[1731014608528,2.5351,196.97,196.92,2.5355]
[1731014608828,2.5351,196.97,196.87,12.17217375]
[1731014609526,2.5351,196.97,196.92,2.5356]
[1731014609728,12.17217375,196.99,196.87,12.17217375]
[1731014609928,12.17217375,196.97,196.87,12.17217375]
[1731014610132,12.17217375,196.97,196.89,2.536]
[1731014610935,2.5355,196.94,196.89,2.536]
[1731014611236,13.38977375,196.99,196.9,12.17217375]
[1731014611532,51.48437649,197.01,196.9,15.43217375]
[1731014611939,2.535,196.97,196.93,2.5354]
[1731014612743,12.17217375,196.99,196.9,15.43217375]
[1731014612933,12.17217375,196.99,196.91,2.5357]
[1731014612934,2.5351,196.96,196.91,2.5357]
[1731014613329,12.17217375,196.99,196.88,3.24]
[1731014613534,2.5353,196.95,196.91,2.5358]
[1731014615943,2.5354,196.94,196.91,2.5358]
[1731014616838,2.5355,196.93,196.87,12.17217375]
[1731014617532,2.5355,196.93,196.89,2.5359]
[1731014617833,2.5356,196.93,196.85,2.5765]
[1731014618037,2.5356,196.93,196.88,2.5361]
[1731014618333,12.17217375,196.97,196.88,2.5361]
[1731014618536,2.5357,196.92,196.88,2.5361]
[1731014619442,12.17217375,196.97,196.85,2.5765]
[1731014619741,12.17217375,196.94,196.84,58.41978618]
[1731014619937,12.17217375,196.94,196.84,46.24761243]
[1731014620539,12.17217375,196.94,196.86,2.5364]
[1731014620941,2.536,196.89,196.86,2.5364]
[1731014626443,2.5358,196.91,196.86,2.5364]
[1731014626642,7.79112163,196.91,196.86,2.5364]
[1731014627445,2.536,196.9,196.86,2.5364]
[1731014628033,2.5361,196.89,196.85,7.79112163]
[1731014628433,7.79112163,196.91,196.85,7.79112163]
[1731014628646,2.5362,196.88,196.83,10.32782163]
[1731014628838,7.79112163,196.89,196.83,2.5367]
[1731014629042,7.79112163,196.87,196.83,2.5367]
[1731014629247,2.5365,196.86,196.82,7.79112163]
[1731014629441,7.79112163,196.87,196.82,7.79112163]
[1731014629947,7.79112163,196.87,196.82,10.32802163]
[1731014630335,7.79112163,196.85,196.8,7.79112163]
[1731014630539,10.32772163,196.85,196.81,2.537]
[1731014633141,7.79112163,196.85,196.81,2.537]
[1731014633341,2.5367,196.84,196.81,2.537]
[1731014633742,2.5367,196.84,196.77,3.24]
[1731014634051,2.5367,196.84,196.8,10.32822163]
[1731014634253,2.5367,196.84,196.81,4.58901267]
[1731014634454,2.5367,196.84,196.8,10.32822163]
[1731014634643,2.5367,196.84,196.81,4.58901267]
[1731014634844,2.5367,196.84,196.8,10.32822163]
[1731014635343,2.5367,196.84,196.81,4.58899486]
[1731014635652,2.5365,196.85,196.81,2.537]
[1731014636055,2.5369,196.83,196.79,2.5372]
[1731014636255,7.79112163,196.86,196.8,12.3841983]
[1731014636450,7.79112163,196.86,196.8,7.79112163]
[1731014636650,2.5366,196.85,196.81,2.537]
[1731014637359,7.79112163,196.86,196.81,2.537]
[1731014637656,2.5365,196.85,196.81,2.537]
[1731014638257,7.79112163,196.86,196.8,7.79112163]
[1731014638456,2.5367,196.84,196.8,10.32832163]
[1731014640451,2.5365,196.85,196.81,2.537]
[1731014641962,2.5365,196.85,196.8,7.79112163]
[1731014641963,2.5367,196.84,196.8,10.32832163]
[1731014642854,2.5367,196.84,196.8,7.79112163]
[1731014643055,10.32782163,196.84,196.8,7.79112163]
[1731014644263,2.5369,196.83,196.78,2.5374]
[1731014644454,7.79112163,196.82,196.76,7.79112163]
[1731014644661,7.79112163,196.81,196.76,7.79112163]
[1731014644961,10.32822163,196.81,196.77,2.5375]
[1731014645765,2.5372,196.8,196.77,2.5375]
[1731014646467,7.79112163,196.81,196.75,7.79112163]
[1731014647148,2.5372,196.8,196.75,7.79112163]
[1731014648850,2.5372,196.8,196.77,2.5375]
[1731014649051,2.5371,196.81,196.75,7.79112163]
[1731014649256,2.5371,196.81,196.77,7.79112163]
[1731014649658,51.52044856,196.87,196.77,7.79112163]
[1731014649859,7.79112163,196.83,196.78,2.5374]
[1731014650862,2.537,196.81,196.78,2.5374]
[1731014652158,7.79112163,196.85,196.79,10.32832163]
[1731014652562,7.79112163,196.85,196.81,7.79112163]
[1731014652874,62.55157019,196.87,196.81,7.79112163]
[1731014653063,59.31157019,196.87,196.81,7.79112163]
[1731014653465,2.5365,196.86,196.82,2.5369]
[1731014654469,10.32762163,196.86,196.82,2.5369]
[1731014655167,2.5365,196.86,196.82,2.5369]
[1731014655470,2.5363,196.87,196.83,2.5367]
[1731014655859,7.79112163,196.88,196.84,7.79112163]
[1731014656062,2.536,196.89,196.85,2.5364]
[1731014656262,3.24,196.94,196.85,2.5364]
[1731014656568,7.79112163,196.91,196.85,2.5364]
[1731014656763,2.536,196.9,196.86,2.5364]
[1731014658079,10.32712163,196.9,196.86,2.5364]
[1731014658870,7.79112163,196.9,196.86,2.5364]
[1731014659173,2.536,196.89,196.86,2.5364]
[1731014659978,7.79112163,196.92,196.86,10.32752163]
[1731014660172,1.1924,196.98,196.88,7.79112163]
[1731014660380,7.79112163,196.95,196.89,7.79112163]
[1731014660569,0.75986846,196.94,196.89,7.79112163]
[1731014660876,2.5356,196.93,196.89,7.79112163]
[1731014661077,7.79112163,196.94,196.89,10.32712163]
[1731014661283,7.79112163,196.94,196.89,2.536]
[1731014661489,10.32672163,196.92,196.87,7.79112163]
[1731014662883,2.5359,196.9,196.87,2.5363]
[1731014663285,2.5359,196.9,196.85,8.98092163]
[1731014663581,10.32702163,196.9,196.85,7.79112163]
[1731014664385,2.5358,196.91,196.87,2.5362]
[1731014664572,10.32692163,196.91,196.87,2.5362]
[1731014664972,2.5359,196.9,196.87,2.5362]
[1731014665888,2.5359,196.9,196.86,2.5364]
[1731014666568,10.32702163,196.9,196.86,2.5364]
[1731014666779,2.5362,196.88,196.85,7.79112163]
[1731014666986,7.79112163,196.88,196.83,7.79112163]
[1731014667186,7.79112163,196.88,196.82,7.79112163]
[1731014667576,2.5364,196.87,196.83,2.5367]
[1731014670475,2.5364,196.87,196.84,2.5366]
[1731014670781,2.5364,196.87,196.82,7.79112163]
[1731014671684,2.5364,196.87,196.83,2.5368]
[1731014673292,7.79112163,196.91,196.85,7.79112163]
[1731014674493,2.5359,196.9,196.86,2.5363]
[1731014675189,7.79112163,196.93,196.87,7.79112163]
[1731014675392,0.75962765,196.92,196.89,7.79112163]
[1731014675587,7.79112163,196.95,196.89,7.79112163]
[1731014675784,2.5356,196.93,196.89,10.32702163]
[1731014675981,0.7596089,196.92,196.89,10.32702163]
[1731014676185,2.5356,196.93,196.89,10.32702163]
[1731014677380,7.79112163,196.95,196.89,10.32702163]
[1731014677583,2.5355,196.93,196.89,10.32702163]
[1731014679189,7.79112163,196.91,196.85,3.22]
[1731014679391,7.79112163,196.91,196.85,7.79112163]
[1731014679692,2.5359,196.9,196.86,2.5363]
[1731014680187,2.5353,196.95,196.88,2.5361]
[1731014680387,4.4537,196.98,196.89,7.79112163]
[1731014680594,7.79112163,196.95,196.89,7.79112163]
[1731014680997,2.5355,196.94,196.91,2.5357]
[1731014681197,7.79112163,196.95,196.89,7.79112163]
[1731014681393,2.5354,196.94,196.9,10.32692163]
[1731014682393,2.5354,196.94,196.91,2.5357]
[1731014684905,10.32652163,196.94,196.91,2.5357]
[1731014685094,10.32652163,196.94,196.9,2.5359]
[1731014685503,10.32652163,196.94,196.9,2.5358]
[1731014691305,2.5355,196.93,196.9,2.5358]
[1731014691709,7.79112163,196.92,196.85,7.79112163]
[1731014692516,2.5359,196.91,196.87,2.5362]
[1731014693412,2.5359,196.9,196.87,2.5362]
[1731014694113,2.536,196.89,196.86,2.5364]
[1731014695716,7.79112163,196.88,196.84,7.79112163]
[1731014696808,2.536,196.89,196.86,2.5363]
[1731014698323,2.536,196.89,196.86,10.32742163]
[1731014700919,2.5359,196.9,196.86,10.32742163]
[1731014702026,2.536,196.89,196.86,10.32742163]
[1731014702619,7.79112163,196.88,196.8,1.2138]
[1731014702825,7.79112163,196.88,196.84,10.32772163]
[1731014703027,1.2069,196.93,196.87,7.79112163]
[1731014703219,7.79112163,196.93,196.87,7.79112163]
[1731014703422,7.79112163,196.93,196.9,2.5358]
[1731014703633,6.3059233,196.97,196.91,7.79112163]
[1731014703827,0.75818548,196.96,196.91,7.79112163]
[1731014704025,0.75818548,196.96,196.94,2.5353]
[1731014704332,7.79112163,196.98,196.92,7.79112163]
[1731014704633,0.75824767,196.97,196.94,2.5353]
[1731014705032,0.75824594,196.96,196.94,2.5353]
[1731014705231,7.79112163,196.98,196.94,2.5353]
[1731014705622,0.75824514,196.97,196.94,2.5353]
[1731014706737,3.29324514,196.97,196.93,2.5355]
[1731014706947,7.79112163,196.98,196.91,7.79112163]
[1731014707226,0.75823522,196.97,196.91,7.79112163]
[1731014707417,0.75823522,196.97,196.91,10.27087485]
[1731014707622,0.75823522,196.97,196.93,2.5354]
[1731014708926,10.32612163,196.98,196.93,2.5354]
[1731014709132,0.75823874,196.97,196.93,2.5354]
[1731014710120,3.29323874,196.97,196.93,2.5354]
[1731014710320,2.535,196.97,196.93,2.5354]
[1731014711642,10.32582163,196.99,196.95,7.79112163]
[1731014711826,7.79112163,196.99,196.95,7.79112163]
[1731014712833,2.5349,196.98,196.95,7.79112163]
[1731014713027,2.5349,196.98,196.94,2.5353]
[1731014713228,2.5349,196.98,196.94,10.32642163]
[1731014714341,7.79112163,196.99,196.94,7.79112163]
[1731014714529,2.5349,196.98,196.95,2.5352]
[1731014715532,7.79112163,196.99,196.95,2.5352]
[1731014715533,10.32592163,196.99,196.95,2.5352]
[1731014718428,10.32592163,196.99,196.96,2.5351]